{"text_format":"1","workbook":"xlsx","n_sheets":4,"sheets":["Bourse aux jouets","liste","Etiquettes","param"],"not_rendered":{"charts":0,"images":5,"macros":1,"external_links":0,"defined_names":4,"comments":0,"pivot_tables":0},"unopened":[],"bounds":{"document_bytes":16777216,"sheet_cells":100000,"rows_first":2000,"rows_last":500,"rows_between":2000,"halvings":0,"cell_chars":16384,"cell_head_chars":4096},"cells_cut":0,"cells_raw":0,"read":"whole","date_system":"1900"}

{"sheet":"Bourse aux jouets","index":0,"n_rows":67,"n_cols":16,"rows_kept":67,"cut":false,"hidden":false,"merged":[[2,1,2,9]]}
[]
[]
[null,"Comment utiliser le fichier liste ?"]
[]
[]
[]
[null,"Afin de commencer il est nécessaire d'activer les Macro"]
[]
[]
[]
[]
[]
[null,null,null,null,null,null,null,null,null,"Cliquez sur l'onglet liste pour commencer la saisie de la liste de vente."]
[]
[]
[]
[]
[]
[]
[]
[]
[]
[]
[]
[]
[]
[]
[]
[]
[]
[]
[]
[]
[]
[null,null,null,null,null,null,null,null,null,"vous devez saisir vos informations personnelles"]
[]
[]
[]
[]
[]
[]
[]
[]
[]
[]
[]
[]
[]
[]
[]
[]
[]
[null,null,null,null,null,null,null,null,null,null,null,null,null,null,null,"Le champ taille ne doit pas être rempli"]
[]
[]
[]
[null,"Pour chaque article, renseignez le prix, le type d'objet (liste déroulante) et les informations concernant l'article"]
[]
[]
[]
[]
[]
[]
[]
[]
[null,null,null,null,null,null,null,null,"Les étiquettes sont automatiquement générées."]
[null,null,null,null,null,null,null,null,"Imprimez les étiquettes et fixez les sur chaque article avant le dépôt."]

{"sheet":"liste","index":1,"n_rows":109,"n_cols":13,"rows_kept":109,"cut":false,"hidden":false,"merged":[[5,4,5,6],[6,4,6,6],[6,8,6,10],[5,8,5,10],[8,5,8,11],[9,5,9,11],[10,5,10,11],[11,5,11,11],[12,5,12,11],[13,5,13,11],[14,5,14,11],[15,5,15,11],[16,5,16,11],[17,5,17,11],[18,5,18,11],[19,5,19,11],[20,5,20,11],[21,5,21,11],[22,5,22,11],[23,5,23,11],[24,5,24,11],[25,5,25,11],[26,5,26,11],[27,5,27,11],[28,5,28,11],[29,5,29,11],[30,5,30,11],[31,5,31,11],[32,5,32,11],[33,5,33,11],[34,5,34,11],[35,5,35,11],[36,5,36,11],[37,5,37,11],[38,5,38,11],[39,5,39,11],[40,5,40,11],[41,5,41,11],[42,5,42,11],[43,5,43,11],[44,5,44,11],[45,5,45,11],[46,5,46,11],[47,5,47,11],[48,5,48,11],[49,5,49,11],[50,5,50,11],[51,5,51,11],[52,5,52,11],[53,5,53,11],[54,5,54,11],[55,5,55,11],[56,5,56,11],[57,5,57,11],[58,5,58,11],[59,5,59,11],[60,5,60,11],[61,5,61,11],[62,5,62,11],[63,5,63,11],[64,5,64,11],[65,5,65,11],[66,5,66,11],[67,5,67,11],[68,5,68,11],[69,5,69,11],[70,5,70,11],[71,5,71,11],[72,5,72,11],[73,5,73,11],[74,5,74,11],[75,5,75,11],[76,5,76,11],[77,5,77,11],[78,5,78,11],[79,5,79,11],[80,5,80,11],[81,5,81,11],[82,5,82,11],[83,5,83,11],[84,5,84,11],[85,5,85,11],[86,5,86,11],[87,5,87,11],[88,5,88,11],[89,5,89,11],[90,5,90,11],[91,5,91,11],[92,5,92,11],[93,5,93,11],[103,5,103,11],[104,5,104,11],[105,5,105,11],[106,5,106,11],[107,5,107,11],[108,5,108,11],[94,5,94,11],[95,5,95,11],[96,5,96,11],[97,5,97,11],[98,5,98,11],[99,5,99,11],[100,5,100,11],[101,5,101,11],[102,5,102,11]]}
[]
[]
[]
[]
[]
[null,null,null,"Nom:",null,null,null,"Tél:",null,null,null,"Adhérent APEL:"]
[null,null,null,"Prénom:",null,null,null,"Mail:",null,null,null,"Classe enfant"]
[]
[null,null,"Étiquette ","Prix affiché","Type objet","désignation (nature, couleur, marque etc…)",null,null,null,null,null,null,"TAILLE"]
[null,"AA",{"$f":"LEFT($E$6, 1) & LEFT($E$7, 1) &RIGHT(param!$G$2,4) & \"-\" &  B10","v":"-AA"}]
[null,"AB",{"$f":"LEFT($E$6, 1) & LEFT($E$7, 1) &RIGHT(param!$G$2,4) & \"-\" &  B11","v":"-AB"}]
[null,"AC",{"$f":"LEFT($E$6, 1) & LEFT($E$7, 1) &RIGHT(param!$G$2,4) & \"-\" &  B12","v":"-AC"}]
[null,"AD",{"$f":"LEFT($E$6, 1) & LEFT($E$7, 1) &RIGHT(param!$G$2,4) & \"-\" &  B13","v":"-AD"}]
[null,"AE",{"$f":"LEFT($E$6, 1) & LEFT($E$7, 1) &RIGHT(param!$G$2,4) & \"-\" &  B14","v":"-AE"}]
[null,"AF",{"$f":"LEFT($E$6, 1) & LEFT($E$7, 1) &RIGHT(param!$G$2,4) & \"-\" &  B15","v":"-AF"}]
[null,"AG",{"$f":"LEFT($E$6, 1) & LEFT($E$7, 1) &RIGHT(param!$G$2,4) & \"-\" &  B16","v":"-AG"}]
[null,"AH",{"$f":"LEFT($E$6, 1) & LEFT($E$7, 1) &RIGHT(param!$G$2,4) & \"-\" &  B17","v":"-AH"}]
[null,"AI",{"$f":"LEFT($E$6, 1) & LEFT($E$7, 1) &RIGHT(param!$G$2,4) & \"-\" &  B18","v":"-AI"}]
[null,"AJ",{"$f":"LEFT($E$6, 1) & LEFT($E$7, 1) &RIGHT(param!$G$2,4) & \"-\" &  B19","v":"-AJ"}]
[null,"AK",{"$f":"LEFT($E$6, 1) & LEFT($E$7, 1) &RIGHT(param!$G$2,4) & \"-\" &  B20","v":"-AK"}]
[null,"AL",{"$f":"LEFT($E$6, 1) & LEFT($E$7, 1) &RIGHT(param!$G$2,4) & \"-\" &  B21","v":"-AL"}]
[null,"AM",{"$f":"LEFT($E$6, 1) & LEFT($E$7, 1) &RIGHT(param!$G$2,4) & \"-\" &  B22","v":"-AM"}]
[null,"AN",{"$f":"LEFT($E$6, 1) & LEFT($E$7, 1) &RIGHT(param!$G$2,4) & \"-\" &  B23","v":"-AN"}]
[null,"AO",{"$f":"LEFT($E$6, 1) & LEFT($E$7, 1) &RIGHT(param!$G$2,4) & \"-\" &  B24","v":"-AO"}]
[null,"AP",{"$f":"LEFT($E$6, 1) & LEFT($E$7, 1) &RIGHT(param!$G$2,4) & \"-\" &  B25","v":"-AP"}]
[null,"AQ",{"$f":"LEFT($E$6, 1) & LEFT($E$7, 1) &RIGHT(param!$G$2,4) & \"-\" &  B26","v":"-AQ"}]
[null,"AR",{"$f":"LEFT($E$6, 1) & LEFT($E$7, 1) &RIGHT(param!$G$2,4) & \"-\" &  B27","v":"-AR"}]
[null,"AS",{"$f":"LEFT($E$6, 1) & LEFT($E$7, 1) &RIGHT(param!$G$2,4) & \"-\" &  B28","v":"-AS"}]
[null,"AT",{"$f":"LEFT($E$6, 1) & LEFT($E$7, 1) &RIGHT(param!$G$2,4) & \"-\" &  B29","v":"-AT"}]
[null,"AU",{"$f":"LEFT($E$6, 1) & LEFT($E$7, 1) &RIGHT(param!$G$2,4) & \"-\" &  B30","v":"-AU"}]
[null,"AV",{"$f":"LEFT($E$6, 1) & LEFT($E$7, 1) &RIGHT(param!$G$2,4) & \"-\" &  B31","v":"-AV"}]
[null,"AW",{"$f":"LEFT($E$6, 1) & LEFT($E$7, 1) &RIGHT(param!$G$2,4) & \"-\" &  B32","v":"-AW"}]
[null,"AX",{"$f":"LEFT($E$6, 1) & LEFT($E$7, 1) &RIGHT(param!$G$2,4) & \"-\" &  B33","v":"-AX"}]
[null,"AY",{"$f":"LEFT($E$6, 1) & LEFT($E$7, 1) &RIGHT(param!$G$2,4) & \"-\" &  B34","v":"-AY"}]
[null,"AZ",{"$f":"LEFT($E$6, 1) & LEFT($E$7, 1) &RIGHT(param!$G$2,4) & \"-\" &  B35","v":"-AZ"}]
[null,"BA",{"$f":"LEFT($E$6, 1) & LEFT($E$7, 1) &RIGHT(param!$G$2,4) & \"-\" &  B36","v":"-BA"}]
[null,"BB",{"$f":"LEFT($E$6, 1) & LEFT($E$7, 1) &RIGHT(param!$G$2,4) & \"-\" &  B37","v":"-BB"}]
[null,"BC",{"$f":"LEFT($E$6, 1) & LEFT($E$7, 1) &RIGHT(param!$G$2,4) & \"-\" &  B38","v":"-BC"}]
[null,"BD",{"$f":"LEFT($E$6, 1) & LEFT($E$7, 1) &RIGHT(param!$G$2,4) & \"-\" &  B39","v":"-BD"}]
[null,"BE",{"$f":"LEFT($E$6, 1) & LEFT($E$7, 1) &RIGHT(param!$G$2,4) & \"-\" &  B40","v":"-BE"}]
[null,"BF",{"$f":"LEFT($E$6, 1) & LEFT($E$7, 1) &RIGHT(param!$G$2,4) & \"-\" &  B41","v":"-BF"}]
[null,"BG",{"$f":"LEFT($E$6, 1) & LEFT($E$7, 1) &RIGHT(param!$G$2,4) & \"-\" &  B42","v":"-BG"}]
[null,"BH",{"$f":"LEFT($E$6, 1) & LEFT($E$7, 1) &RIGHT(param!$G$2,4) & \"-\" &  B43","v":"-BH"}]
[null,"BI",{"$f":"LEFT($E$6, 1) & LEFT($E$7, 1) &RIGHT(param!$G$2,4) & \"-\" &  B44","v":"-BI"}]
[null,"BJ",{"$f":"LEFT($E$6, 1) & LEFT($E$7, 1) &RIGHT(param!$G$2,4) & \"-\" &  B45","v":"-BJ"}]
[null,"BK",{"$f":"LEFT($E$6, 1) & LEFT($E$7, 1) &RIGHT(param!$G$2,4) & \"-\" &  B46","v":"-BK"}]
[null,"BL",{"$f":"LEFT($E$6, 1) & LEFT($E$7, 1) &RIGHT(param!$G$2,4) & \"-\" &  B47","v":"-BL"}]
[null,"BM",{"$f":"LEFT($E$6, 1) & LEFT($E$7, 1) &RIGHT(param!$G$2,4) & \"-\" &  B48","v":"-BM"}]
[null,"BN",{"$f":"LEFT($E$6, 1) & LEFT($E$7, 1) &RIGHT(param!$G$2,4) & \"-\" &  B49","v":"-BN"}]
[null,"BO",{"$f":"LEFT($E$6, 1) & LEFT($E$7, 1) &RIGHT(param!$G$2,4) & \"-\" &  B50","v":"-BO"}]
[null,"BP",{"$f":"LEFT($E$6, 1) & LEFT($E$7, 1) &RIGHT(param!$G$2,4) & \"-\" &  B51","v":"-BP"}]
[null,"BQ",{"$f":"LEFT($E$6, 1) & LEFT($E$7, 1) &RIGHT(param!$G$2,4) & \"-\" &  B52","v":"-BQ"}]
[null,"BR",{"$f":"LEFT($E$6, 1) & LEFT($E$7, 1) &RIGHT(param!$G$2,4) & \"-\" &  B53","v":"-BR"}]
[null,"BS",{"$f":"LEFT($E$6, 1) & LEFT($E$7, 1) &RIGHT(param!$G$2,4) & \"-\" &  B54","v":"-BS"}]
[null,"BT",{"$f":"LEFT($E$6, 1) & LEFT($E$7, 1) &RIGHT(param!$G$2,4) & \"-\" &  B55","v":"-BT"}]
[null,"BU",{"$f":"LEFT($E$6, 1) & LEFT($E$7, 1) &RIGHT(param!$G$2,4) & \"-\" &  B56","v":"-BU"}]
[null,"BV",{"$f":"LEFT($E$6, 1) & LEFT($E$7, 1) &RIGHT(param!$G$2,4) & \"-\" &  B57","v":"-BV"}]
[null,"BW",{"$f":"LEFT($E$6, 1) & LEFT($E$7, 1) &RIGHT(param!$G$2,4) & \"-\" &  B58","v":"-BW"}]
[null,"BX",{"$f":"LEFT($E$6, 1) & LEFT($E$7, 1) &RIGHT(param!$G$2,4) & \"-\" &  B59","v":"-BX"}]
[null,"BY",{"$f":"LEFT($E$6, 1) & LEFT($E$7, 1) &RIGHT(param!$G$2,4) & \"-\" &  B60","v":"-BY"}]
[null,"BZ",{"$f":"LEFT($E$6, 1) & LEFT($E$7, 1) &RIGHT(param!$G$2,4) & \"-\" &  B61","v":"-BZ"}]
[null,"CA",{"$f":"LEFT($E$6, 1) & LEFT($E$7, 1) &RIGHT(param!$G$2,4) & \"-\" &  B62","v":"-CA"}]
[null,"CB",{"$f":"LEFT($E$6, 1) & LEFT($E$7, 1) &RIGHT(param!$G$2,4) & \"-\" &  B63","v":"-CB"}]
[null,"CC",{"$f":"LEFT($E$6, 1) & LEFT($E$7, 1) &RIGHT(param!$G$2,4) & \"-\" &  B64","v":"-CC"}]
[null,"CD",{"$f":"LEFT($E$6, 1) & LEFT($E$7, 1) &RIGHT(param!$G$2,4) & \"-\" &  B65","v":"-CD"}]
[null,"CE",{"$f":"LEFT($E$6, 1) & LEFT($E$7, 1) &RIGHT(param!$G$2,4) & \"-\" &  B66","v":"-CE"}]
[null,"CF",{"$f":"LEFT($E$6, 1) & LEFT($E$7, 1) &RIGHT(param!$G$2,4) & \"-\" &  B67","v":"-CF"}]
[null,"CG",{"$f":"LEFT($E$6, 1) & LEFT($E$7, 1) &RIGHT(param!$G$2,4) & \"-\" &  B68","v":"-CG"}]
[null,"CH",{"$f":"LEFT($E$6, 1) & LEFT($E$7, 1) &RIGHT(param!$G$2,4) & \"-\" &  B69","v":"-CH"}]
[null,"CI",{"$f":"LEFT($E$6, 1) & LEFT($E$7, 1) &RIGHT(param!$G$2,4) & \"-\" &  B70","v":"-CI"}]
[null,"CJ",{"$f":"LEFT($E$6, 1) & LEFT($E$7, 1) &RIGHT(param!$G$2,4) & \"-\" &  B71","v":"-CJ"}]
[null,"CK",{"$f":"LEFT($E$6, 1) & LEFT($E$7, 1) &RIGHT(param!$G$2,4) & \"-\" &  B72","v":"-CK"}]
[null,"CL",{"$f":"LEFT($E$6, 1) & LEFT($E$7, 1) &RIGHT(param!$G$2,4) & \"-\" &  B73","v":"-CL"}]
[null,"CM",{"$f":"LEFT($E$6, 1) & LEFT($E$7, 1) &RIGHT(param!$G$2,4) & \"-\" &  B74","v":"-CM"}]
[null,"CN",{"$f":"LEFT($E$6, 1) & LEFT($E$7, 1) &RIGHT(param!$G$2,4) & \"-\" &  B75","v":"-CN"}]
[null,"CO",{"$f":"LEFT($E$6, 1) & LEFT($E$7, 1) &RIGHT(param!$G$2,4) & \"-\" &  B76","v":"-CO"}]
[null,"CP",{"$f":"LEFT($E$6, 1) & LEFT($E$7, 1) &RIGHT(param!$G$2,4) & \"-\" &  B77","v":"-CP"}]
[null,"CQ",{"$f":"LEFT($E$6, 1) & LEFT($E$7, 1) &RIGHT(param!$G$2,4) & \"-\" &  B78","v":"-CQ"}]
[null,"CR",{"$f":"LEFT($E$6, 1) & LEFT($E$7, 1) &RIGHT(param!$G$2,4) & \"-\" &  B79","v":"-CR"}]
[null,"CS",{"$f":"LEFT($E$6, 1) & LEFT($E$7, 1) &RIGHT(param!$G$2,4) & \"-\" &  B80","v":"-CS"}]
[null,"CT",{"$f":"LEFT($E$6, 1) & LEFT($E$7, 1) &RIGHT(param!$G$2,4) & \"-\" &  B81","v":"-CT"}]
[null,"CU",{"$f":"LEFT($E$6, 1) & LEFT($E$7, 1) &RIGHT(param!$G$2,4) & \"-\" &  B82","v":"-CU"}]
[null,"CV",{"$f":"LEFT($E$6, 1) & LEFT($E$7, 1) &RIGHT(param!$G$2,4) & \"-\" &  B83","v":"-CV"}]
[null,"CW",{"$f":"LEFT($E$6, 1) & LEFT($E$7, 1) &RIGHT(param!$G$2,4) & \"-\" &  B84","v":"-CW"}]
[null,"CX",{"$f":"LEFT($E$6, 1) & LEFT($E$7, 1) &RIGHT(param!$G$2,4) & \"-\" &  B85","v":"-CX"}]
[null,"CY",{"$f":"LEFT($E$6, 1) & LEFT($E$7, 1) &RIGHT(param!$G$2,4) & \"-\" &  B86","v":"-CY"}]
[null,"CZ",{"$f":"LEFT($E$6, 1) & LEFT($E$7, 1) &RIGHT(param!$G$2,4) & \"-\" &  B87","v":"-CZ"}]
[null,"DA",{"$f":"LEFT($E$6, 1) & LEFT($E$7, 1) &RIGHT(param!$G$2,4) & \"-\" &  B88","v":"-DA"}]
[null,"DB",{"$f":"LEFT($E$6, 1) & LEFT($E$7, 1) &RIGHT(param!$G$2,4) & \"-\" &  B89","v":"-DB"}]
[null,"DC",{"$f":"LEFT($E$6, 1) & LEFT($E$7, 1) &RIGHT(param!$G$2,4) & \"-\" &  B90","v":"-DC"}]
[null,"DD",{"$f":"LEFT($E$6, 1) & LEFT($E$7, 1) &RIGHT(param!$G$2,4) & \"-\" &  B91","v":"-DD"}]
[null,"DE",{"$f":"LEFT($E$6, 1) & LEFT($E$7, 1) &RIGHT(param!$G$2,4) & \"-\" &  B92","v":"-DE"}]
[null,"DF",{"$f":"LEFT($E$6, 1) & LEFT($E$7, 1) &RIGHT(param!$G$2,4) & \"-\" &  B93","v":"-DF"}]
[null,"DG",{"$f":"LEFT($E$6, 1) & LEFT($E$7, 1) &RIGHT(param!$G$2,4) & \"-\" &  B94","v":"-DG"}]
[null,"DH",{"$f":"LEFT($E$6, 1) & LEFT($E$7, 1) &RIGHT(param!$G$2,4) & \"-\" &  B95","v":"-DH"}]
[null,"DI",{"$f":"LEFT($E$6, 1) & LEFT($E$7, 1) &RIGHT(param!$G$2,4) & \"-\" &  B96","v":"-DI"}]
[null,"DJ",{"$f":"LEFT($E$6, 1) & LEFT($E$7, 1) &RIGHT(param!$G$2,4) & \"-\" &  B97","v":"-DJ"}]
[null,"DK",{"$f":"LEFT($E$6, 1) & LEFT($E$7, 1) &RIGHT(param!$G$2,4) & \"-\" &  B98","v":"-DK"}]
[null,"DL",{"$f":"LEFT($E$6, 1) & LEFT($E$7, 1) &RIGHT(param!$G$2,4) & \"-\" &  B99","v":"-DL"}]
[null,"DM",{"$f":"LEFT($E$6, 1) & LEFT($E$7, 1) &RIGHT(param!$G$2,4) & \"-\" &  B100","v":"-DM"}]
[null,"DN",{"$f":"LEFT($E$6, 1) & LEFT($E$7, 1) &RIGHT(param!$G$2,4) & \"-\" &  B101","v":"-DN"}]
[null,"DO",{"$f":"LEFT($E$6, 1) & LEFT($E$7, 1) &RIGHT(param!$G$2,4) & \"-\" &  B102","v":"-DO"}]
[null,"DP",{"$f":"LEFT($E$6, 1) & LEFT($E$7, 1) &RIGHT(param!$G$2,4) & \"-\" &  B103","v":"-DP"}]
[null,"DQ",{"$f":"LEFT($E$6, 1) & LEFT($E$7, 1) &RIGHT(param!$G$2,4) & \"-\" &  B104","v":"-DQ"}]
[null,"DR",{"$f":"LEFT($E$6, 1) & LEFT($E$7, 1) &RIGHT(param!$G$2,4) & \"-\" &  B105","v":"-DR"}]
[null,"DS",{"$f":"LEFT($E$6, 1) & LEFT($E$7, 1) &RIGHT(param!$G$2,4) & \"-\" &  B106","v":"-DS"}]
[null,"DT",{"$f":"LEFT($E$6, 1) & LEFT($E$7, 1) &RIGHT(param!$G$2,4) & \"-\" &  B107","v":"-DT"}]
[null,"DU",{"$f":"LEFT($E$6, 1) & LEFT($E$7, 1) &RIGHT(param!$G$2,4) & \"-\" &  B108","v":"-DU"}]
[null,"DV",{"$f":"LEFT($E$6, 1) & LEFT($E$7, 1) &RIGHT(param!$G$2,4) & \"-\" &  B109","v":"-DV"}]

{"sheet":"Etiquettes","index":2,"n_rows":58,"n_cols":9,"rows_kept":58,"cut":false,"hidden":false,"merged":[[7,1,7,9]]}
[]
[]
[]
[]
[]
[]
[]
[null,"Etiquettes générées"]
[]
[null,null,{"$f":"IF(liste!D10 = \"\", \"\", liste!C10 &  CHAR(10) & liste!D10 & \" €\" & IF(liste!M10=\"\",\"\", CHAR(10) & \"taille \" & liste!M10))","v":""},null,{"$f":"IF(liste!D11 = \"\", \"\", liste!C10 &  CHAR(10) & liste!D11 & \" €\" & IF(liste!O10=\"\",\"\", CHAR(10) & \"taille \" & liste!O10))","v":""},null,{"$f":"IF(liste!D12 = \"\", \"\", liste!C12 &  CHAR(10) & liste!D12 & \" €\" & IF(liste!M12=\"\",\"\", CHAR(10) & \"taille \" & liste!M12))","v":""},null,{"$f":"IF(liste!D13 = \"\", \"\", liste!C13 &  CHAR(10) & liste!D13 & \" €\" & IF(liste!M13=\"\",\"\", CHAR(10) & \"taille \" & liste!M13))","v":""}]
[]
[null,null,{"$f":"IF(liste!D14 = \"\", \"\", liste!C14 &  CHAR(10) & liste!D14 & \" €\" & IF(liste!M14=\"\",\"\", CHAR(10) & \"taille \" & liste!M14))","v":""},null,{"$f":"IF(liste!D15 = \"\", \"\", liste!C15 &  CHAR(10) & liste!D15 & \" €\" & IF(liste!M15=\"\",\"\", CHAR(10) & \"taille \" & liste!M15))","v":""},null,{"$f":"IF(liste!D16 = \"\", \"\", liste!C16 &  CHAR(10) & liste!D16 & \" €\" & IF(liste!M16=\"\",\"\", CHAR(10) & \"taille \" & liste!M16))","v":""},null,{"$f":"IF(liste!D17 = \"\", \"\", liste!C17 &  CHAR(10) & liste!D17 & \" €\" & IF(liste!M17=\"\",\"\", CHAR(10) & \"taille \" & liste!M17))","v":""}]
[]
[null,null,{"$f":"IF(liste!D18 = \"\", \"\", liste!C18 &  CHAR(10) & liste!D18 & \" €\" & IF(liste!M18=\"\",\"\", CHAR(10) & \"taille \" & liste!M18))","v":""},null,{"$f":"IF(liste!D19 = \"\", \"\", liste!C19 &  CHAR(10) & liste!D19 & \" €\" & IF(liste!M19=\"\",\"\", CHAR(10) & \"taille \" & liste!M19))","v":""},null,{"$f":"IF(liste!D20 = \"\", \"\", liste!C20 &  CHAR(10) & liste!D20 & \" €\" & IF(liste!M20=\"\",\"\", CHAR(10) & \"taille \" & liste!M20))","v":""},null,{"$f":"IF(liste!D21 = \"\", \"\", liste!C21 &  CHAR(10) & liste!D21 & \" €\" & IF(liste!M21=\"\",\"\", CHAR(10) & \"taille \" & liste!M21))","v":""}]
[]
[null,null,{"$f":"IF(liste!D22 = \"\", \"\", liste!C22 &  CHAR(10) & liste!D22 & \" €\" & IF(liste!M22=\"\",\"\", CHAR(10) & \"taille \" & liste!M22))","v":""},null,{"$f":"IF(liste!D23 = \"\", \"\", liste!C23 &  CHAR(10) & liste!D23 & \" €\" & IF(liste!M23=\"\",\"\", CHAR(10) & \"taille \" & liste!M23))","v":""},null,{"$f":"IF(liste!D24 = \"\", \"\", liste!C24 &  CHAR(10) & liste!D24 & \" €\" & IF(liste!M24=\"\",\"\", CHAR(10) & \"taille \" & liste!M24))","v":""},null,{"$f":"IF(liste!D25 = \"\", \"\", liste!C25 &  CHAR(10) & liste!D25 & \" €\" & IF(liste!M25=\"\",\"\", CHAR(10) & \"taille \" & liste!M25))","v":""}]
[]
[null,null,{"$f":"IF(liste!D26 = \"\", \"\", liste!C26 &  CHAR(10) & liste!D26 & \" €\" & IF(liste!M26=\"\",\"\", CHAR(10) & \"taille \" & liste!M26))","v":""},null,{"$f":"IF(liste!D27 = \"\", \"\", liste!C27 &  CHAR(10) & liste!D27 & \" €\" & IF(liste!M27=\"\",\"\", CHAR(10) & \"taille \" & liste!M27))","v":""},null,{"$f":"IF(liste!D28 = \"\", \"\", liste!C28 &  CHAR(10) & liste!D28 & \" €\" & IF(liste!M28=\"\",\"\", CHAR(10) & \"taille \" & liste!M28))","v":""},null,{"$f":"IF(liste!D29 = \"\", \"\", liste!C29 &  CHAR(10) & liste!D29 & \" €\" & IF(liste!M29=\"\",\"\", CHAR(10) & \"taille \" & liste!M29))","v":""}]
[]
[null,null,{"$f":"IF(liste!D30 = \"\", \"\", liste!C30 &  CHAR(10) & liste!D30 & \" €\" & IF(liste!M30=\"\",\"\", CHAR(10) & \"taille \" & liste!M30))","v":""},null,{"$f":"IF(liste!D31 = \"\", \"\", liste!C31 &  CHAR(10) & liste!D31 & \" €\" & IF(liste!M31=\"\",\"\", CHAR(10) & \"taille \" & liste!M31))","v":""},null,{"$f":"IF(liste!D32 = \"\", \"\", liste!C32 &  CHAR(10) & liste!D32 & \" €\" & IF(liste!M32=\"\",\"\", CHAR(10) & \"taille \" & liste!M32))","v":""},null,{"$f":"IF(liste!D33 = \"\", \"\", liste!C33 &  CHAR(10) & liste!D33 & \" €\" & IF(liste!M33=\"\",\"\", CHAR(10) & \"taille \" & liste!M33))","v":""}]
[]
[null,null,{"$f":"IF(liste!D34 = \"\", \"\", liste!C34 &  CHAR(10) & liste!D34 & \" €\" & IF(liste!M34=\"\",\"\", CHAR(10) & \"taille \" & liste!M34))","v":""},null,{"$f":"IF(liste!D35 = \"\", \"\", liste!C35 &  CHAR(10) & liste!D35 & \" €\" & IF(liste!M35=\"\",\"\", CHAR(10) & \"taille \" & liste!M35))","v":""},null,{"$f":"IF(liste!D36 = \"\", \"\", liste!C36 &  CHAR(10) & liste!D36 & \" €\" & IF(liste!M36=\"\",\"\", CHAR(10) & \"taille \" & liste!M36))","v":""},null,{"$f":"IF(liste!D37 = \"\", \"\", liste!C37 &  CHAR(10) & liste!D37 & \" €\" & IF(liste!M37=\"\",\"\", CHAR(10) & \"taille \" & liste!M37))","v":""}]
[]
[null,null,{"$f":"IF(liste!D38 = \"\", \"\", liste!C38 &  CHAR(10) & liste!D38 & \" €\" & IF(liste!M38=\"\",\"\", CHAR(10) & \"taille \" & liste!M38))","v":""},null,{"$f":"IF(liste!D39 = \"\", \"\", liste!C39 &  CHAR(10) & liste!D39 & \" €\" & IF(liste!M39=\"\",\"\", CHAR(10) & \"taille \" & liste!M39))","v":""},null,{"$f":"IF(liste!D40 = \"\", \"\", liste!C40 &  CHAR(10) & liste!D40 & \" €\" & IF(liste!M40=\"\",\"\", CHAR(10) & \"taille \" & liste!M40))","v":""},null,{"$f":"IF(liste!D41 = \"\", \"\", liste!C41 &  CHAR(10) & liste!D41 & \" €\" & IF(liste!M41=\"\",\"\", CHAR(10) & \"taille \" & liste!M41))","v":""}]
[]
[null,null,{"$f":"IF(liste!D42 = \"\", \"\", liste!C42 &  CHAR(10) & liste!D42 & \" €\" & IF(liste!M42=\"\",\"\", CHAR(10) & \"taille \" & liste!M42))","v":""},null,{"$f":"IF(liste!D43 = \"\", \"\", liste!C43 &  CHAR(10) & liste!D43 & \" €\" & IF(liste!M43=\"\",\"\", CHAR(10) & \"taille \" & liste!M43))","v":""},null,{"$f":"IF(liste!D44 = \"\", \"\", liste!C44 &  CHAR(10) & liste!D44 & \" €\" & IF(liste!M44=\"\",\"\", CHAR(10) & \"taille \" & liste!M44))","v":""},null,{"$f":"IF(liste!D45 = \"\", \"\", liste!C45 &  CHAR(10) & liste!D45 & \" €\" & IF(liste!M45=\"\",\"\", CHAR(10) & \"taille \" & liste!M45))","v":""}]
[]
[null,null,{"$f":"IF(liste!D46 = \"\", \"\", liste!C46 &  CHAR(10) & liste!D46 & \" €\" & IF(liste!M46=\"\",\"\", CHAR(10) & \"taille \" & liste!M46))","v":""},null,{"$f":"IF(liste!D47 = \"\", \"\", liste!C47 &  CHAR(10) & liste!D47 & \" €\" & IF(liste!M47=\"\",\"\", CHAR(10) & \"taille \" & liste!M47))","v":""},null,{"$f":"IF(liste!D48 = \"\", \"\", liste!C48 &  CHAR(10) & liste!D48 & \" €\" & IF(liste!M48=\"\",\"\", CHAR(10) & \"taille \" & liste!M48))","v":""},null,{"$f":"IF(liste!D49 = \"\", \"\", liste!C49 &  CHAR(10) & liste!D49 & \" €\" & IF(liste!M49=\"\",\"\", CHAR(10) & \"taille \" & liste!M49))","v":""}]
[]
[null,null,{"$f":"IF(liste!D50 = \"\", \"\", liste!C50 &  CHAR(10) & liste!D50 & \" €\" & IF(liste!M50=\"\",\"\", CHAR(10) & \"taille \" & liste!M50))","v":""},null,{"$f":"IF(liste!D51 = \"\", \"\", liste!C51 &  CHAR(10) & liste!D51 & \" €\" & IF(liste!M51=\"\",\"\", CHAR(10) & \"taille \" & liste!M51))","v":""},null,{"$f":"IF(liste!D52 = \"\", \"\", liste!C52 &  CHAR(10) & liste!D52 & \" €\" & IF(liste!M52=\"\",\"\", CHAR(10) & \"taille \" & liste!M52))","v":""},null,{"$f":"IF(liste!D53 = \"\", \"\", liste!C53 &  CHAR(10) & liste!D53 & \" €\" & IF(liste!M53=\"\",\"\", CHAR(10) & \"taille \" & liste!M53))","v":""}]
[]
[null,null,{"$f":"IF(liste!D54 = \"\", \"\", liste!C54 &  CHAR(10) & liste!D54 & \" €\" & IF(liste!M54=\"\",\"\", CHAR(10) & \"taille \" & liste!M54))","v":""},null,{"$f":"IF(liste!D55 = \"\", \"\", liste!C55 &  CHAR(10) & liste!D55 & \" €\" & IF(liste!M55=\"\",\"\", CHAR(10) & \"taille \" & liste!M55))","v":""},null,{"$f":"IF(liste!D56 = \"\", \"\", liste!C56 &  CHAR(10) & liste!D56 & \" €\" & IF(liste!M56=\"\",\"\", CHAR(10) & \"taille \" & liste!M56))","v":""},null,{"$f":"IF(liste!D57 = \"\", \"\", liste!C57 &  CHAR(10) & liste!D57 & \" €\" & IF(liste!M57=\"\",\"\", CHAR(10) & \"taille \" & liste!M57))","v":""}]
[]
[null,null,{"$f":"IF(liste!D58 = \"\", \"\", liste!C58 &  CHAR(10) & liste!D58 & \" €\" & IF(liste!M58=\"\",\"\", CHAR(10) & \"taille \" & liste!M58))","v":""},null,{"$f":"IF(liste!D59 = \"\", \"\", liste!C59 &  CHAR(10) & liste!D59 & \" €\" & IF(liste!M59=\"\",\"\", CHAR(10) & \"taille \" & liste!M59))","v":""},null,{"$f":"IF(liste!D60 = \"\", \"\", liste!C60 &  CHAR(10) & liste!D60 & \" €\" & IF(liste!M60=\"\",\"\", CHAR(10) & \"taille \" & liste!M60))","v":""},null,{"$f":"IF(liste!D61 = \"\", \"\", liste!C61 &  CHAR(10) & liste!D61 & \" €\" & IF(liste!M61=\"\",\"\", CHAR(10) & \"taille \" & liste!M61))","v":""}]
[]
[null,null,{"$f":"IF(liste!D62 = \"\", \"\", liste!C62 &  CHAR(10) & liste!D62 & \" €\" & IF(liste!M62=\"\",\"\", CHAR(10) & \"taille \" & liste!M62))","v":""},null,{"$f":"IF(liste!D63 = \"\", \"\", liste!C63 &  CHAR(10) & liste!D63 & \" €\" & IF(liste!M63=\"\",\"\", CHAR(10) & \"taille \" & liste!M63))","v":""},null,{"$f":"IF(liste!D64 = \"\", \"\", liste!C64 &  CHAR(10) & liste!D64 & \" €\" & IF(liste!M64=\"\",\"\", CHAR(10) & \"taille \" & liste!M64))","v":""},null,{"$f":"IF(liste!D65 = \"\", \"\", liste!C65 &  CHAR(10) & liste!D65 & \" €\" & IF(liste!M65=\"\",\"\", CHAR(10) & \"taille \" & liste!M65))","v":""}]
[]
[null,null,{"$f":"IF(liste!D66 = \"\", \"\", liste!C66 &  CHAR(10) & liste!D66 & \" €\" & IF(liste!M66=\"\",\"\", CHAR(10) & \"taille \" & liste!M66))","v":""},null,{"$f":"IF(liste!D67 = \"\", \"\", liste!C67 &  CHAR(10) & liste!D67 & \" €\" & IF(liste!M67=\"\",\"\", CHAR(10) & \"taille \" & liste!M67))","v":""},null,{"$f":"IF(liste!D68 = \"\", \"\", liste!C68 &  CHAR(10) & liste!D68 & \" €\" & IF(liste!M68=\"\",\"\", CHAR(10) & \"taille \" & liste!M68))","v":""},null,{"$f":"IF(liste!D69 = \"\", \"\", liste!C69 &  CHAR(10) & liste!D69 & \" €\" & IF(liste!M69=\"\",\"\", CHAR(10) & \"taille \" & liste!M69))","v":""}]
[]
[null,null,{"$f":"IF(liste!D70 = \"\", \"\", liste!C70 &  CHAR(10) & liste!D70 & \" €\" & IF(liste!M70=\"\",\"\", CHAR(10) & \"taille \" & liste!M70))","v":""},null,{"$f":"IF(liste!D71 = \"\", \"\", liste!C71 &  CHAR(10) & liste!D71 & \" €\" & IF(liste!M71=\"\",\"\", CHAR(10) & \"taille \" & liste!M71))","v":""},null,{"$f":"IF(liste!D72 = \"\", \"\", liste!C72 &  CHAR(10) & liste!D72 & \" €\" & IF(liste!M72=\"\",\"\", CHAR(10) & \"taille \" & liste!M72))","v":""},null,{"$f":"IF(liste!D73 = \"\", \"\", liste!C73 &  CHAR(10) & liste!D73 & \" €\" & IF(liste!M73=\"\",\"\", CHAR(10) & \"taille \" & liste!M73))","v":""}]
[]
[null,null,{"$f":"IF(liste!D74 = \"\", \"\", liste!C74 &  CHAR(10) & liste!D74 & \" €\" & IF(liste!M74=\"\",\"\", CHAR(10) & \"taille \" & liste!M74))","v":""},null,{"$f":"IF(liste!D75 = \"\", \"\", liste!C75 &  CHAR(10) & liste!D75 & \" €\" & IF(liste!M75=\"\",\"\", CHAR(10) & \"taille \" & liste!M75))","v":""},null,{"$f":"IF(liste!D76 = \"\", \"\", liste!C76 &  CHAR(10) & liste!D76 & \" €\" & IF(liste!M76=\"\",\"\", CHAR(10) & \"taille \" & liste!M76))","v":""},null,{"$f":"IF(liste!D77 = \"\", \"\", liste!C77 &  CHAR(10) & liste!D77 & \" €\" & IF(liste!M77=\"\",\"\", CHAR(10) & \"taille \" & liste!M77))","v":""}]
[]
[null,null,{"$f":"IF(liste!D78 = \"\", \"\", liste!C78 &  CHAR(10) & liste!D78 & \" €\" & IF(liste!M78=\"\",\"\", CHAR(10) & \"taille \" & liste!M78))","v":""},null,{"$f":"IF(liste!D79 = \"\", \"\", liste!C79 &  CHAR(10) & liste!D79 & \" €\" & IF(liste!M79=\"\",\"\", CHAR(10) & \"taille \" & liste!M79))","v":""},null,{"$f":"IF(liste!D80 = \"\", \"\", liste!C80 &  CHAR(10) & liste!D80 & \" €\" & IF(liste!M80=\"\",\"\", CHAR(10) & \"taille \" & liste!M80))","v":""},null,{"$f":"IF(liste!D81 = \"\", \"\", liste!C81 &  CHAR(10) & liste!D81 & \" €\" & IF(liste!M81=\"\",\"\", CHAR(10) & \"taille \" & liste!M81))","v":""}]
[]
[null,null,{"$f":"IF(liste!D82 = \"\", \"\", liste!C82 &  CHAR(10) & liste!D82 & \" €\" & IF(liste!M82=\"\",\"\", CHAR(10) & \"taille \" & liste!M82))","v":""},null,{"$f":"IF(liste!D83 = \"\", \"\", liste!C83 &  CHAR(10) & liste!D83 & \" €\" & IF(liste!M83=\"\",\"\", CHAR(10) & \"taille \" & liste!M83))","v":""},null,{"$f":"IF(liste!D84 = \"\", \"\", liste!C84 &  CHAR(10) & liste!D84 & \" €\" & IF(liste!M84=\"\",\"\", CHAR(10) & \"taille \" & liste!M84))","v":""},null,{"$f":"IF(liste!D85 = \"\", \"\", liste!C85 &  CHAR(10) & liste!D85 & \" €\" & IF(liste!M85=\"\",\"\", CHAR(10) & \"taille \" & liste!M85))","v":""}]
[]
[null,null,{"$f":"IF(liste!D86 = \"\", \"\", liste!C86 &  CHAR(10) & liste!D86 & \" €\" & IF(liste!M86=\"\",\"\", CHAR(10) & \"taille \" & liste!M86))","v":""},null,{"$f":"IF(liste!D87 = \"\", \"\", liste!C87 &  CHAR(10) & liste!D87 & \" €\" & IF(liste!M87=\"\",\"\", CHAR(10) & \"taille \" & liste!M87))","v":""},null,{"$f":"IF(liste!D88 = \"\", \"\", liste!C88 &  CHAR(10) & liste!D88 & \" €\" & IF(liste!M88=\"\",\"\", CHAR(10) & \"taille \" & liste!M88))","v":""},null,{"$f":"IF(liste!D89 = \"\", \"\", liste!C89 &  CHAR(10) & liste!D89 & \" €\" & IF(liste!M89=\"\",\"\", CHAR(10) & \"taille \" & liste!M89))","v":""}]
[]
[null,null,{"$f":"IF(liste!D90 = \"\", \"\", liste!C90 &  CHAR(10) & liste!D90 & \" €\" & IF(liste!M90=\"\",\"\", CHAR(10) & \"taille \" & liste!M90))","v":""},null,{"$f":"IF(liste!D91 = \"\", \"\", liste!C91 &  CHAR(10) & liste!D91 & \" €\" & IF(liste!M91=\"\",\"\", CHAR(10) & \"taille \" & liste!M91))","v":""},null,{"$f":"IF(liste!D92 = \"\", \"\", liste!C92 &  CHAR(10) & liste!D92 & \" €\" & IF(liste!M92=\"\",\"\", CHAR(10) & \"taille \" & liste!M92))","v":""},null,{"$f":"IF(liste!D93 = \"\", \"\", liste!C93 &  CHAR(10) & liste!D93 & \" €\" & IF(liste!M93=\"\",\"\", CHAR(10) & \"taille \" & liste!M93))","v":""}]
[]
[null,null,{"$f":"IF(liste!D94 = \"\", \"\", liste!C94 &  CHAR(10) & liste!D94 & \" €\" & IF(liste!M94=\"\",\"\", CHAR(10) & \"taille \" & liste!M94))","v":""},null,{"$f":"IF(liste!D95 = \"\", \"\", liste!C95 &  CHAR(10) & liste!D95 & \" €\" & IF(liste!M95=\"\",\"\", CHAR(10) & \"taille \" & liste!M95))","v":""},null,{"$f":"IF(liste!D96 = \"\", \"\", liste!C96 &  CHAR(10) & liste!D96 & \" €\" & IF(liste!M96=\"\",\"\", CHAR(10) & \"taille \" & liste!M96))","v":""},null,{"$f":"IF(liste!D97 = \"\", \"\", liste!C97 &  CHAR(10) & liste!D97 & \" €\" & IF(liste!M97=\"\",\"\", CHAR(10) & \"taille \" & liste!M97))","v":""}]
[]
[null,null,{"$f":"IF(liste!D98 = \"\", \"\", liste!C98 &  CHAR(10) & liste!D98 & \" €\" & IF(liste!M98=\"\",\"\", CHAR(10) & \"taille \" & liste!M98))","v":""},null,{"$f":"IF(liste!D99 = \"\", \"\", liste!C99 &  CHAR(10) & liste!D99 & \" €\" & IF(liste!M99=\"\",\"\", CHAR(10) & \"taille \" & liste!M99))","v":""},null,{"$f":"IF(liste!D100 = \"\", \"\", liste!C100 &  CHAR(10) & liste!D100 & \" €\" & IF(liste!M100=\"\",\"\", CHAR(10) & \"taille \" & liste!M100))","v":""},null,{"$f":"IF(liste!D101 = \"\", \"\", liste!C101 &  CHAR(10) & liste!D101 & \" €\" & IF(liste!M101=\"\",\"\", CHAR(10) & \"taille \" & liste!M101))","v":""}]
[]
[null,null,{"$f":"IF(liste!D102 = \"\", \"\", liste!C102 &  CHAR(10) & liste!D102 & \" €\" & IF(liste!M102=\"\",\"\", CHAR(10) & \"taille \" & liste!M102))","v":""},null,{"$f":"IF(liste!D103 = \"\", \"\", liste!C103 &  CHAR(10) & liste!D103 & \" €\" & IF(liste!M103=\"\",\"\", CHAR(10) & \"taille \" & liste!M103))","v":""},null,{"$f":"IF(liste!D104 = \"\", \"\", liste!C104 &  CHAR(10) & liste!D104 & \" €\" & IF(liste!M104=\"\",\"\", CHAR(10) & \"taille \" & liste!M104))","v":""},null,{"$f":"IF(liste!D105 = \"\", \"\", liste!C105 &  CHAR(10) & liste!D105 & \" €\" & IF(liste!M105=\"\",\"\", CHAR(10) & \"taille \" & liste!M105))","v":""}]
[]
[null,null,{"$f":"IF(liste!D106 = \"\", \"\", liste!C106 &  CHAR(10) & liste!D106 & \" €\" & IF(liste!M106=\"\",\"\", CHAR(10) & \"taille \" & liste!M106))","v":""},null,{"$f":"IF(liste!D107 = \"\", \"\", liste!C107 &  CHAR(10) & liste!D107 & \" €\" & IF(liste!M107=\"\",\"\", CHAR(10) & \"taille \" & liste!M107))","v":""},null,{"$f":"IF(liste!D108 = \"\", \"\", liste!C108 &  CHAR(10) & liste!D108 & \" €\" & IF(liste!M108=\"\",\"\", CHAR(10) & \"taille \" & liste!M108))","v":""},null,{"$f":"IF(liste!D109 = \"\", \"\", liste!C109 &  CHAR(10) & liste!D109 & \" €\" & IF(liste!M109=\"\",\"\", CHAR(10) & \"taille \" & liste!M109))","v":""}]

{"sheet":"param","index":3,"n_rows":678,"n_cols":8,"rows_kept":678,"cut":false,"hidden":true,"merged":[[0,0,0,4],[0,5,0,8]]}
["Liste",null,null,null,null,"Variable"]
["type_object","est_adherent_apel","cl_enfant",null,null,"joker",null,"liste_lettre"]
["JOUET","OUI","PS",null,null,null,null,"AA"]
["PUERICULTURE","NON","MS",null,null,null,null,"AB"]
["LIVRE",null,"GS",null,null,null,null,"AC"]
[null,null,"CP",null,null,null,null,"AD"]
[null,null,"CP",null,null,null,null,"AE"]
[null,null,"CE1",null,null,null,null,"AF"]
[null,null,"CE2",null,null,null,null,"AG"]
[null,null,"CM1",null,null,null,null,"AH"]
[null,null,"CM2",null,null,null,null,"AI"]
[null,null,null,null,null,null,null,"AJ"]
[null,null,null,null,null,null,null,"AK"]
[null,null,null,null,null,null,null,"AL"]
[null,null,null,null,null,null,null,"AM"]
[null,null,null,null,null,null,null,"AN"]
[null,null,null,null,null,null,null,"AO"]
[null,null,null,null,null,null,null,"AP"]
[null,null,null,null,null,null,null,"AQ"]
[null,null,null,null,null,null,null,"AR"]
[null,null,null,null,null,null,null,"AS"]
[null,null,null,null,null,null,null,"AT"]
[null,null,null,null,null,null,null,"AU"]
[null,null,null,null,null,null,null,"AV"]
[null,null,null,null,null,null,null,"AW"]
[null,null,null,null,null,null,null,"AX"]
[null,null,null,null,null,null,null,"AY"]
[null,null,null,null,null,null,null,"AZ"]
[null,null,null,null,null,null,null,"BA"]
[null,null,null,null,null,null,null,"BB"]
[null,null,null,null,null,null,null,"BC"]
[null,null,null,null,null,null,null,"BD"]
[null,null,null,null,null,null,null,"BE"]
[null,null,null,null,null,null,null,"BF"]
[null,null,null,null,null,null,null,"BG"]
[null,null,null,null,null,null,null,"BH"]
[null,null,null,null,null,null,null,"BI"]
[null,null,null,null,null,null,null,"BJ"]
[null,null,null,null,null,null,null,"BK"]
[null,null,null,null,null,null,null,"BL"]
[null,null,null,null,null,null,null,"BM"]
[null,null,null,null,null,null,null,"BN"]
[null,null,null,null,null,null,null,"BO"]
[null,null,null,null,null,null,null,"BP"]
[null,null,null,null,null,null,null,"BQ"]
[null,null,null,null,null,null,null,"BR"]
[null,null,null,null,null,null,null,"BS"]
[null,null,null,null,null,null,null,"BT"]
[null,null,null,null,null,null,null,"BU"]
[null,null,null,null,null,null,null,"BV"]
[null,null,null,null,null,null,null,"BW"]
[null,null,null,null,null,null,null,"BX"]
[null,null,null,null,null,null,null,"BY"]
[null,null,null,null,null,null,null,"BZ"]
[null,null,null,null,null,null,null,"CA"]
[null,null,null,null,null,null,null,"CB"]
[null,null,null,null,null,null,null,"CC"]
[null,null,null,null,null,null,null,"CD"]
[null,null,null,null,null,null,null,"CE"]
[null,null,null,null,null,null,null,"CF"]
[null,null,null,null,null,null,null,"CG"]
[null,null,null,null,null,null,null,"CH"]
[null,null,null,null,null,null,null,"CI"]
[null,null,null,null,null,null,null,"CJ"]
[null,null,null,null,null,null,null,"CK"]
[null,null,null,null,null,null,null,"CL"]
[null,null,null,null,null,null,null,"CM"]
[null,null,null,null,null,null,null,"CN"]
[null,null,null,null,null,null,null,"CO"]
[null,null,null,null,null,null,null,"CP"]
[null,null,null,null,null,null,null,"CQ"]
[null,null,null,null,null,null,null,"CR"]
[null,null,null,null,null,null,null,"CS"]
[null,null,null,null,null,null,null,"CT"]
[null,null,null,null,null,null,null,"CU"]
[null,null,null,null,null,null,null,"CV"]
[null,null,null,null,null,null,null,"CW"]
[null,null,null,null,null,null,null,"CX"]
[null,null,null,null,null,null,null,"CY"]
[null,null,null,null,null,null,null,"CZ"]
[null,null,null,null,null,null,null,"DA"]
[null,null,null,null,null,null,null,"DB"]
[null,null,null,null,null,null,null,"DC"]
[null,null,null,null,null,null,null,"DD"]
[null,null,null,null,null,null,null,"DE"]
[null,null,null,null,null,null,null,"DF"]
[null,null,null,null,null,null,null,"DG"]
[null,null,null,null,null,null,null,"DH"]
[null,null,null,null,null,null,null,"DI"]
[null,null,null,null,null,null,null,"DJ"]
[null,null,null,null,null,null,null,"DK"]
[null,null,null,null,null,null,null,"DL"]
[null,null,null,null,null,null,null,"DM"]
[null,null,null,null,null,null,null,"DN"]
[null,null,null,null,null,null,null,"DO"]
[null,null,null,null,null,null,null,"DP"]
[null,null,null,null,null,null,null,"DQ"]
[null,null,null,null,null,null,null,"DR"]
[null,null,null,null,null,null,null,"DS"]
[null,null,null,null,null,null,null,"DT"]
[null,null,null,null,null,null,null,"DU"]
[null,null,null,null,null,null,null,"DV"]
[null,null,null,null,null,null,null,"DW"]
[null,null,null,null,null,null,null,"DX"]
[null,null,null,null,null,null,null,"DY"]
[null,null,null,null,null,null,null,"DZ"]
[null,null,null,null,null,null,null,"EA"]
[null,null,null,null,null,null,null,"EB"]
[null,null,null,null,null,null,null,"EC"]
[null,null,null,null,null,null,null,"ED"]
[null,null,null,null,null,null,null,"EE"]
[null,null,null,null,null,null,null,"EF"]
[null,null,null,null,null,null,null,"EG"]
[null,null,null,null,null,null,null,"EH"]
[null,null,null,null,null,null,null,"EI"]
[null,null,null,null,null,null,null,"EJ"]
[null,null,null,null,null,null,null,"EK"]
[null,null,null,null,null,null,null,"EL"]
[null,null,null,null,null,null,null,"EM"]
[null,null,null,null,null,null,null,"EN"]
[null,null,null,null,null,null,null,"EO"]
[null,null,null,null,null,null,null,"EP"]
[null,null,null,null,null,null,null,"EQ"]
[null,null,null,null,null,null,null,"ER"]
[null,null,null,null,null,null,null,"ES"]
[null,null,null,null,null,null,null,"ET"]
[null,null,null,null,null,null,null,"EU"]
[null,null,null,null,null,null,null,"EV"]
[null,null,null,null,null,null,null,"EW"]
[null,null,null,null,null,null,null,"EX"]
[null,null,null,null,null,null,null,"EY"]
[null,null,null,null,null,null,null,"EZ"]
[null,null,null,null,null,null,null,"FA"]
[null,null,null,null,null,null,null,"FB"]
[null,null,null,null,null,null,null,"FC"]
[null,null,null,null,null,null,null,"FD"]
[null,null,null,null,null,null,null,"FE"]
[null,null,null,null,null,null,null,"FF"]
[null,null,null,null,null,null,null,"FG"]
[null,null,null,null,null,null,null,"FH"]
[null,null,null,null,null,null,null,"FI"]
[null,null,null,null,null,null,null,"FJ"]
[null,null,null,null,null,null,null,"FK"]
[null,null,null,null,null,null,null,"FL"]
[null,null,null,null,null,null,null,"FM"]
[null,null,null,null,null,null,null,"FN"]
[null,null,null,null,null,null,null,"FO"]
[null,null,null,null,null,null,null,"FP"]
[null,null,null,null,null,null,null,"FQ"]
[null,null,null,null,null,null,null,"FR"]
[null,null,null,null,null,null,null,"FS"]
[null,null,null,null,null,null,null,"FT"]
[null,null,null,null,null,null,null,"FU"]
[null,null,null,null,null,null,null,"FV"]
[null,null,null,null,null,null,null,"FW"]
[null,null,null,null,null,null,null,"FX"]
[null,null,null,null,null,null,null,"FY"]
[null,null,null,null,null,null,null,"FZ"]
[null,null,null,null,null,null,null,"GA"]
[null,null,null,null,null,null,null,"GB"]
[null,null,null,null,null,null,null,"GC"]
[null,null,null,null,null,null,null,"GD"]
[null,null,null,null,null,null,null,"GE"]
[null,null,null,null,null,null,null,"GF"]
[null,null,null,null,null,null,null,"GG"]
[null,null,null,null,null,null,null,"GH"]
[null,null,null,null,null,null,null,"GI"]
[null,null,null,null,null,null,null,"GJ"]
[null,null,null,null,null,null,null,"GK"]
[null,null,null,null,null,null,null,"GL"]
[null,null,null,null,null,null,null,"GM"]
[null,null,null,null,null,null,null,"GN"]
[null,null,null,null,null,null,null,"GO"]
[null,null,null,null,null,null,null,"GP"]
[null,null,null,null,null,null,null,"GQ"]
[null,null,null,null,null,null,null,"GR"]
[null,null,null,null,null,null,null,"GS"]
[null,null,null,null,null,null,null,"GT"]
[null,null,null,null,null,null,null,"GU"]
[null,null,null,null,null,null,null,"GV"]
[null,null,null,null,null,null,null,"GW"]
[null,null,null,null,null,null,null,"GX"]
[null,null,null,null,null,null,null,"GY"]
[null,null,null,null,null,null,null,"GZ"]
[null,null,null,null,null,null,null,"HA"]
[null,null,null,null,null,null,null,"HB"]
[null,null,null,null,null,null,null,"HC"]
[null,null,null,null,null,null,null,"HD"]
[null,null,null,null,null,null,null,"HE"]
[null,null,null,null,null,null,null,"HF"]
[null,null,null,null,null,null,null,"HG"]
[null,null,null,null,null,null,null,"HH"]
[null,null,null,null,null,null,null,"HI"]
[null,null,null,null,null,null,null,"HJ"]
[null,null,null,null,null,null,null,"HK"]
[null,null,null,null,null,null,null,"HL"]
[null,null,null,null,null,null,null,"HM"]
[null,null,null,null,null,null,null,"HN"]
[null,null,null,null,null,null,null,"HO"]
[null,null,null,null,null,null,null,"HP"]
[null,null,null,null,null,null,null,"HQ"]
[null,null,null,null,null,null,null,"HR"]
[null,null,null,null,null,null,null,"HS"]
[null,null,null,null,null,null,null,"HT"]
[null,null,null,null,null,null,null,"HU"]
[null,null,null,null,null,null,null,"HV"]
[null,null,null,null,null,null,null,"HW"]
[null,null,null,null,null,null,null,"HX"]
[null,null,null,null,null,null,null,"HY"]
[null,null,null,null,null,null,null,"HZ"]
[null,null,null,null,null,null,null,"IA"]
[null,null,null,null,null,null,null,"IB"]
[null,null,null,null,null,null,null,"IC"]
[null,null,null,null,null,null,null,"ID"]
[null,null,null,null,null,null,null,"IE"]
[null,null,null,null,null,null,null,"IF"]
[null,null,null,null,null,null,null,"IG"]
[null,null,null,null,null,null,null,"IH"]
[null,null,null,null,null,null,null,"II"]
[null,null,null,null,null,null,null,"IJ"]
[null,null,null,null,null,null,null,"IK"]
[null,null,null,null,null,null,null,"IL"]
[null,null,null,null,null,null,null,"IM"]
[null,null,null,null,null,null,null,"IN"]
[null,null,null,null,null,null,null,"IO"]
[null,null,null,null,null,null,null,"IP"]
[null,null,null,null,null,null,null,"IQ"]
[null,null,null,null,null,null,null,"IR"]
[null,null,null,null,null,null,null,"IS"]
[null,null,null,null,null,null,null,"IT"]
[null,null,null,null,null,null,null,"IU"]
[null,null,null,null,null,null,null,"IV"]
[null,null,null,null,null,null,null,"IW"]
[null,null,null,null,null,null,null,"IX"]
[null,null,null,null,null,null,null,"IY"]
[null,null,null,null,null,null,null,"IZ"]
[null,null,null,null,null,null,null,"JA"]
[null,null,null,null,null,null,null,"JB"]
[null,null,null,null,null,null,null,"JC"]
[null,null,null,null,null,null,null,"JD"]
[null,null,null,null,null,null,null,"JE"]
[null,null,null,null,null,null,null,"JF"]
[null,null,null,null,null,null,null,"JG"]
[null,null,null,null,null,null,null,"JH"]
[null,null,null,null,null,null,null,"JI"]
[null,null,null,null,null,null,null,"JJ"]
[null,null,null,null,null,null,null,"JK"]
[null,null,null,null,null,null,null,"JL"]
[null,null,null,null,null,null,null,"JM"]
[null,null,null,null,null,null,null,"JN"]
[null,null,null,null,null,null,null,"JO"]
[null,null,null,null,null,null,null,"JP"]
[null,null,null,null,null,null,null,"JQ"]
[null,null,null,null,null,null,null,"JR"]
[null,null,null,null,null,null,null,"JS"]
[null,null,null,null,null,null,null,"JT"]
[null,null,null,null,null,null,null,"JU"]
[null,null,null,null,null,null,null,"JV"]
[null,null,null,null,null,null,null,"JW"]
[null,null,null,null,null,null,null,"JX"]
[null,null,null,null,null,null,null,"JY"]
[null,null,null,null,null,null,null,"JZ"]
[null,null,null,null,null,null,null,"KA"]
[null,null,null,null,null,null,null,"KB"]
[null,null,null,null,null,null,null,"KC"]
[null,null,null,null,null,null,null,"KD"]
[null,null,null,null,null,null,null,"KE"]
[null,null,null,null,null,null,null,"KF"]
[null,null,null,null,null,null,null,"KG"]
[null,null,null,null,null,null,null,"KH"]
[null,null,null,null,null,null,null,"KI"]
[null,null,null,null,null,null,null,"KJ"]
[null,null,null,null,null,null,null,"KK"]
[null,null,null,null,null,null,null,"KL"]
[null,null,null,null,null,null,null,"KM"]
[null,null,null,null,null,null,null,"KN"]
[null,null,null,null,null,null,null,"KO"]
[null,null,null,null,null,null,null,"KP"]
[null,null,null,null,null,null,null,"KQ"]
[null,null,null,null,null,null,null,"KR"]
[null,null,null,null,null,null,null,"KS"]
[null,null,null,null,null,null,null,"KT"]
[null,null,null,null,null,null,null,"KU"]
[null,null,null,null,null,null,null,"KV"]
[null,null,null,null,null,null,null,"KW"]
[null,null,null,null,null,null,null,"KX"]
[null,null,null,null,null,null,null,"KY"]
[null,null,null,null,null,null,null,"KZ"]
[null,null,null,null,null,null,null,"LA"]
[null,null,null,null,null,null,null,"LB"]
[null,null,null,null,null,null,null,"LC"]
[null,null,null,null,null,null,null,"LD"]
[null,null,null,null,null,null,null,"LE"]
[null,null,null,null,null,null,null,"LF"]
[null,null,null,null,null,null,null,"LG"]
[null,null,null,null,null,null,null,"LH"]
[null,null,null,null,null,null,null,"LI"]
[null,null,null,null,null,null,null,"LJ"]
[null,null,null,null,null,null,null,"LK"]
[null,null,null,null,null,null,null,"LL"]
[null,null,null,null,null,null,null,"LM"]
[null,null,null,null,null,null,null,"LN"]
[null,null,null,null,null,null,null,"LO"]
[null,null,null,null,null,null,null,"LP"]
[null,null,null,null,null,null,null,"LQ"]
[null,null,null,null,null,null,null,"LR"]
[null,null,null,null,null,null,null,"LS"]
[null,null,null,null,null,null,null,"LT"]
[null,null,null,null,null,null,null,"LU"]
[null,null,null,null,null,null,null,"LV"]
[null,null,null,null,null,null,null,"LW"]
[null,null,null,null,null,null,null,"LX"]
[null,null,null,null,null,null,null,"LY"]
[null,null,null,null,null,null,null,"LZ"]
[null,null,null,null,null,null,null,"MA"]
[null,null,null,null,null,null,null,"MB"]
[null,null,null,null,null,null,null,"MC"]
[null,null,null,null,null,null,null,"MD"]
[null,null,null,null,null,null,null,"ME"]
[null,null,null,null,null,null,null,"MF"]
[null,null,null,null,null,null,null,"MG"]
[null,null,null,null,null,null,null,"MH"]
[null,null,null,null,null,null,null,"MI"]
[null,null,null,null,null,null,null,"MJ"]
[null,null,null,null,null,null,null,"MK"]
[null,null,null,null,null,null,null,"ML"]
[null,null,null,null,null,null,null,"MM"]
[null,null,null,null,null,null,null,"MN"]
[null,null,null,null,null,null,null,"MO"]
[null,null,null,null,null,null,null,"MP"]
[null,null,null,null,null,null,null,"MQ"]
[null,null,null,null,null,null,null,"MR"]
[null,null,null,null,null,null,null,"MS"]
[null,null,null,null,null,null,null,"MT"]
[null,null,null,null,null,null,null,"MU"]
[null,null,null,null,null,null,null,"MV"]
[null,null,null,null,null,null,null,"MW"]
[null,null,null,null,null,null,null,"MX"]
[null,null,null,null,null,null,null,"MY"]
[null,null,null,null,null,null,null,"MZ"]
[null,null,null,null,null,null,null,"NA"]
[null,null,null,null,null,null,null,"NB"]
[null,null,null,null,null,null,null,"NC"]
[null,null,null,null,null,null,null,"ND"]
[null,null,null,null,null,null,null,"NE"]
[null,null,null,null,null,null,null,"NF"]
[null,null,null,null,null,null,null,"NG"]
[null,null,null,null,null,null,null,"NH"]
[null,null,null,null,null,null,null,"NI"]
[null,null,null,null,null,null,null,"NJ"]
[null,null,null,null,null,null,null,"NK"]
[null,null,null,null,null,null,null,"NL"]
[null,null,null,null,null,null,null,"NM"]
[null,null,null,null,null,null,null,"NN"]
[null,null,null,null,null,null,null,"NO"]
[null,null,null,null,null,null,null,"NP"]
[null,null,null,null,null,null,null,"NQ"]
[null,null,null,null,null,null,null,"NR"]
[null,null,null,null,null,null,null,"NS"]
[null,null,null,null,null,null,null,"NT"]
[null,null,null,null,null,null,null,"NU"]
[null,null,null,null,null,null,null,"NV"]
[null,null,null,null,null,null,null,"NW"]
[null,null,null,null,null,null,null,"NX"]
[null,null,null,null,null,null,null,"NY"]
[null,null,null,null,null,null,null,"NZ"]
[null,null,null,null,null,null,null,"OA"]
[null,null,null,null,null,null,null,"OB"]
[null,null,null,null,null,null,null,"OC"]
[null,null,null,null,null,null,null,"OD"]
[null,null,null,null,null,null,null,"OE"]
[null,null,null,null,null,null,null,"OF"]
[null,null,null,null,null,null,null,"OG"]
[null,null,null,null,null,null,null,"OH"]
[null,null,null,null,null,null,null,"OI"]
[null,null,null,null,null,null,null,"OJ"]
[null,null,null,null,null,null,null,"OK"]
[null,null,null,null,null,null,null,"OL"]
[null,null,null,null,null,null,null,"OM"]
[null,null,null,null,null,null,null,"ON"]
[null,null,null,null,null,null,null,"OO"]
[null,null,null,null,null,null,null,"OP"]
[null,null,null,null,null,null,null,"OQ"]
[null,null,null,null,null,null,null,"OR"]
[null,null,null,null,null,null,null,"OS"]
[null,null,null,null,null,null,null,"OT"]
[null,null,null,null,null,null,null,"OU"]
[null,null,null,null,null,null,null,"OV"]
[null,null,null,null,null,null,null,"OW"]
[null,null,null,null,null,null,null,"OX"]
[null,null,null,null,null,null,null,"OY"]
[null,null,null,null,null,null,null,"OZ"]
[null,null,null,null,null,null,null,"PA"]
[null,null,null,null,null,null,null,"PB"]
[null,null,null,null,null,null,null,"PC"]
[null,null,null,null,null,null,null,"PD"]
[null,null,null,null,null,null,null,"PE"]
[null,null,null,null,null,null,null,"PF"]
[null,null,null,null,null,null,null,"PG"]
[null,null,null,null,null,null,null,"PH"]
[null,null,null,null,null,null,null,"PI"]
[null,null,null,null,null,null,null,"PJ"]
[null,null,null,null,null,null,null,"PK"]
[null,null,null,null,null,null,null,"PL"]
[null,null,null,null,null,null,null,"PM"]
[null,null,null,null,null,null,null,"PN"]
[null,null,null,null,null,null,null,"PO"]
[null,null,null,null,null,null,null,"PP"]
[null,null,null,null,null,null,null,"PQ"]
[null,null,null,null,null,null,null,"PR"]
[null,null,null,null,null,null,null,"PS"]
[null,null,null,null,null,null,null,"PT"]
[null,null,null,null,null,null,null,"PU"]
[null,null,null,null,null,null,null,"PV"]
[null,null,null,null,null,null,null,"PW"]
[null,null,null,null,null,null,null,"PX"]
[null,null,null,null,null,null,null,"PY"]
[null,null,null,null,null,null,null,"PZ"]
[null,null,null,null,null,null,null,"QA"]
[null,null,null,null,null,null,null,"QB"]
[null,null,null,null,null,null,null,"QC"]
[null,null,null,null,null,null,null,"QD"]
[null,null,null,null,null,null,null,"QE"]
[null,null,null,null,null,null,null,"QF"]
[null,null,null,null,null,null,null,"QG"]
[null,null,null,null,null,null,null,"QH"]
[null,null,null,null,null,null,null,"QI"]
[null,null,null,null,null,null,null,"QJ"]
[null,null,null,null,null,null,null,"QK"]
[null,null,null,null,null,null,null,"QL"]
[null,null,null,null,null,null,null,"QM"]
[null,null,null,null,null,null,null,"QN"]
[null,null,null,null,null,null,null,"QO"]
[null,null,null,null,null,null,null,"QP"]
[null,null,null,null,null,null,null,"QQ"]
[null,null,null,null,null,null,null,"QR"]
[null,null,null,null,null,null,null,"QS"]
[null,null,null,null,null,null,null,"QT"]
[null,null,null,null,null,null,null,"QU"]
[null,null,null,null,null,null,null,"QV"]
[null,null,null,null,null,null,null,"QW"]
[null,null,null,null,null,null,null,"QX"]
[null,null,null,null,null,null,null,"QY"]
[null,null,null,null,null,null,null,"QZ"]
[null,null,null,null,null,null,null,"RA"]
[null,null,null,null,null,null,null,"RB"]
[null,null,null,null,null,null,null,"RC"]
[null,null,null,null,null,null,null,"RD"]
[null,null,null,null,null,null,null,"RE"]
[null,null,null,null,null,null,null,"RF"]
[null,null,null,null,null,null,null,"RG"]
[null,null,null,null,null,null,null,"RH"]
[null,null,null,null,null,null,null,"RI"]
[null,null,null,null,null,null,null,"RJ"]
[null,null,null,null,null,null,null,"RK"]
[null,null,null,null,null,null,null,"RL"]
[null,null,null,null,null,null,null,"RM"]
[null,null,null,null,null,null,null,"RN"]
[null,null,null,null,null,null,null,"RO"]
[null,null,null,null,null,null,null,"RP"]
[null,null,null,null,null,null,null,"RQ"]
[null,null,null,null,null,null,null,"RR"]
[null,null,null,null,null,null,null,"RS"]
[null,null,null,null,null,null,null,"RT"]
[null,null,null,null,null,null,null,"RU"]
[null,null,null,null,null,null,null,"RV"]
[null,null,null,null,null,null,null,"RW"]
[null,null,null,null,null,null,null,"RX"]
[null,null,null,null,null,null,null,"RY"]
[null,null,null,null,null,null,null,"RZ"]
[null,null,null,null,null,null,null,"SA"]
[null,null,null,null,null,null,null,"SB"]
[null,null,null,null,null,null,null,"SC"]
[null,null,null,null,null,null,null,"SD"]
[null,null,null,null,null,null,null,"SE"]
[null,null,null,null,null,null,null,"SF"]
[null,null,null,null,null,null,null,"SG"]
[null,null,null,null,null,null,null,"SH"]
[null,null,null,null,null,null,null,"SI"]
[null,null,null,null,null,null,null,"SJ"]
[null,null,null,null,null,null,null,"SK"]
[null,null,null,null,null,null,null,"SL"]
[null,null,null,null,null,null,null,"SM"]
[null,null,null,null,null,null,null,"SN"]
[null,null,null,null,null,null,null,"SO"]
[null,null,null,null,null,null,null,"SP"]
[null,null,null,null,null,null,null,"SQ"]
[null,null,null,null,null,null,null,"SR"]
[null,null,null,null,null,null,null,"SS"]
[null,null,null,null,null,null,null,"ST"]
[null,null,null,null,null,null,null,"SU"]
[null,null,null,null,null,null,null,"SV"]
[null,null,null,null,null,null,null,"SW"]
[null,null,null,null,null,null,null,"SX"]
[null,null,null,null,null,null,null,"SY"]
[null,null,null,null,null,null,null,"SZ"]
[null,null,null,null,null,null,null,"TA"]
[null,null,null,null,null,null,null,"TB"]
[null,null,null,null,null,null,null,"TC"]
[null,null,null,null,null,null,null,"TD"]
[null,null,null,null,null,null,null,"TE"]
[null,null,null,null,null,null,null,"TF"]
[null,null,null,null,null,null,null,"TG"]
[null,null,null,null,null,null,null,"TH"]
[null,null,null,null,null,null,null,"TI"]
[null,null,null,null,null,null,null,"TJ"]
[null,null,null,null,null,null,null,"TK"]
[null,null,null,null,null,null,null,"TL"]
[null,null,null,null,null,null,null,"TM"]
[null,null,null,null,null,null,null,"TN"]
[null,null,null,null,null,null,null,"TO"]
[null,null,null,null,null,null,null,"TP"]
[null,null,null,null,null,null,null,"TQ"]
[null,null,null,null,null,null,null,"TR"]
[null,null,null,null,null,null,null,"TS"]
[null,null,null,null,null,null,null,"TT"]
[null,null,null,null,null,null,null,"TU"]
[null,null,null,null,null,null,null,"TV"]
[null,null,null,null,null,null,null,"TW"]
[null,null,null,null,null,null,null,"TX"]
[null,null,null,null,null,null,null,"TY"]
[null,null,null,null,null,null,null,"TZ"]
[null,null,null,null,null,null,null,"UA"]
[null,null,null,null,null,null,null,"UB"]
[null,null,null,null,null,null,null,"UC"]
[null,null,null,null,null,null,null,"UD"]
[null,null,null,null,null,null,null,"UE"]
[null,null,null,null,null,null,null,"UF"]
[null,null,null,null,null,null,null,"UG"]
[null,null,null,null,null,null,null,"UH"]
[null,null,null,null,null,null,null,"UI"]
[null,null,null,null,null,null,null,"UJ"]
[null,null,null,null,null,null,null,"UK"]
[null,null,null,null,null,null,null,"UL"]
[null,null,null,null,null,null,null,"UM"]
[null,null,null,null,null,null,null,"UN"]
[null,null,null,null,null,null,null,"UO"]
[null,null,null,null,null,null,null,"UP"]
[null,null,null,null,null,null,null,"UQ"]
[null,null,null,null,null,null,null,"UR"]
[null,null,null,null,null,null,null,"US"]
[null,null,null,null,null,null,null,"UT"]
[null,null,null,null,null,null,null,"UU"]
[null,null,null,null,null,null,null,"UV"]
[null,null,null,null,null,null,null,"UW"]
[null,null,null,null,null,null,null,"UX"]
[null,null,null,null,null,null,null,"UY"]
[null,null,null,null,null,null,null,"UZ"]
[null,null,null,null,null,null,null,"VA"]
[null,null,null,null,null,null,null,"VB"]
[null,null,null,null,null,null,null,"VC"]
[null,null,null,null,null,null,null,"VD"]
[null,null,null,null,null,null,null,"VE"]
[null,null,null,null,null,null,null,"VF"]
[null,null,null,null,null,null,null,"VG"]
[null,null,null,null,null,null,null,"VH"]
[null,null,null,null,null,null,null,"VI"]
[null,null,null,null,null,null,null,"VJ"]
[null,null,null,null,null,null,null,"VK"]
[null,null,null,null,null,null,null,"VL"]
[null,null,null,null,null,null,null,"VM"]
[null,null,null,null,null,null,null,"VN"]
[null,null,null,null,null,null,null,"VO"]
[null,null,null,null,null,null,null,"VP"]
[null,null,null,null,null,null,null,"VQ"]
[null,null,null,null,null,null,null,"VR"]
[null,null,null,null,null,null,null,"VS"]
[null,null,null,null,null,null,null,"VT"]
[null,null,null,null,null,null,null,"VU"]
[null,null,null,null,null,null,null,"VV"]
[null,null,null,null,null,null,null,"VW"]
[null,null,null,null,null,null,null,"VX"]
[null,null,null,null,null,null,null,"VY"]
[null,null,null,null,null,null,null,"VZ"]
[null,null,null,null,null,null,null,"WA"]
[null,null,null,null,null,null,null,"WB"]
[null,null,null,null,null,null,null,"WC"]
[null,null,null,null,null,null,null,"WD"]
[null,null,null,null,null,null,null,"WE"]
[null,null,null,null,null,null,null,"WF"]
[null,null,null,null,null,null,null,"WG"]
[null,null,null,null,null,null,null,"WH"]
[null,null,null,null,null,null,null,"WI"]
[null,null,null,null,null,null,null,"WJ"]
[null,null,null,null,null,null,null,"WK"]
[null,null,null,null,null,null,null,"WL"]
[null,null,null,null,null,null,null,"WM"]
[null,null,null,null,null,null,null,"WN"]
[null,null,null,null,null,null,null,"WO"]
[null,null,null,null,null,null,null,"WP"]
[null,null,null,null,null,null,null,"WQ"]
[null,null,null,null,null,null,null,"WR"]
[null,null,null,null,null,null,null,"WS"]
[null,null,null,null,null,null,null,"WT"]
[null,null,null,null,null,null,null,"WU"]
[null,null,null,null,null,null,null,"WV"]
[null,null,null,null,null,null,null,"WW"]
[null,null,null,null,null,null,null,"WX"]
[null,null,null,null,null,null,null,"WY"]
[null,null,null,null,null,null,null,"WZ"]
[null,null,null,null,null,null,null,"XA"]
[null,null,null,null,null,null,null,"XB"]
[null,null,null,null,null,null,null,"XC"]
[null,null,null,null,null,null,null,"XD"]
[null,null,null,null,null,null,null,"XE"]
[null,null,null,null,null,null,null,"XF"]
[null,null,null,null,null,null,null,"XG"]
[null,null,null,null,null,null,null,"XH"]
[null,null,null,null,null,null,null,"XI"]
[null,null,null,null,null,null,null,"XJ"]
[null,null,null,null,null,null,null,"XK"]
[null,null,null,null,null,null,null,"XL"]
[null,null,null,null,null,null,null,"XM"]
[null,null,null,null,null,null,null,"XN"]
[null,null,null,null,null,null,null,"XO"]
[null,null,null,null,null,null,null,"XP"]
[null,null,null,null,null,null,null,"XQ"]
[null,null,null,null,null,null,null,"XR"]
[null,null,null,null,null,null,null,"XS"]
[null,null,null,null,null,null,null,"XT"]
[null,null,null,null,null,null,null,"XU"]
[null,null,null,null,null,null,null,"XV"]
[null,null,null,null,null,null,null,"XW"]
[null,null,null,null,null,null,null,"XX"]
[null,null,null,null,null,null,null,"XY"]
[null,null,null,null,null,null,null,"XZ"]
[null,null,null,null,null,null,null,"YA"]
[null,null,null,null,null,null,null,"YB"]
[null,null,null,null,null,null,null,"YC"]
[null,null,null,null,null,null,null,"YD"]
[null,null,null,null,null,null,null,"YE"]
[null,null,null,null,null,null,null,"YF"]
[null,null,null,null,null,null,null,"YG"]
[null,null,null,null,null,null,null,"YH"]
[null,null,null,null,null,null,null,"YI"]
[null,null,null,null,null,null,null,"YJ"]
[null,null,null,null,null,null,null,"YK"]
[null,null,null,null,null,null,null,"YL"]
[null,null,null,null,null,null,null,"YM"]
[null,null,null,null,null,null,null,"YN"]
[null,null,null,null,null,null,null,"YO"]
[null,null,null,null,null,null,null,"YP"]
[null,null,null,null,null,null,null,"YQ"]
[null,null,null,null,null,null,null,"YR"]
[null,null,null,null,null,null,null,"YS"]
[null,null,null,null,null,null,null,"YT"]
[null,null,null,null,null,null,null,"YU"]
[null,null,null,null,null,null,null,"YV"]
[null,null,null,null,null,null,null,"YW"]
[null,null,null,null,null,null,null,"YX"]
[null,null,null,null,null,null,null,"YY"]
[null,null,null,null,null,null,null,"YZ"]
[null,null,null,null,null,null,null,"ZA"]
[null,null,null,null,null,null,null,"ZB"]
[null,null,null,null,null,null,null,"ZC"]
[null,null,null,null,null,null,null,"ZD"]
[null,null,null,null,null,null,null,"ZE"]
[null,null,null,null,null,null,null,"ZF"]
[null,null,null,null,null,null,null,"ZG"]
[null,null,null,null,null,null,null,"ZH"]
[null,null,null,null,null,null,null,"ZI"]
[null,null,null,null,null,null,null,"ZJ"]
[null,null,null,null,null,null,null,"ZK"]
[null,null,null,null,null,null,null,"ZL"]
[null,null,null,null,null,null,null,"ZM"]
[null,null,null,null,null,null,null,"ZN"]
[null,null,null,null,null,null,null,"ZO"]
[null,null,null,null,null,null,null,"ZP"]
[null,null,null,null,null,null,null,"ZQ"]
[null,null,null,null,null,null,null,"ZR"]
[null,null,null,null,null,null,null,"ZS"]
[null,null,null,null,null,null,null,"ZT"]
[null,null,null,null,null,null,null,"ZU"]
[null,null,null,null,null,null,null,"ZV"]
[null,null,null,null,null,null,null,"ZW"]
[null,null,null,null,null,null,null,"ZX"]
[null,null,null,null,null,null,null,"ZY"]
[null,null,null,null,null,null,null,"ZZ"]